fUSD/lending_fUSD_20260324
["ID","MTS","AMOUNT","RATE_DAILY","PERIOD"]
[408836993,1774338694297,-846.4,0.00041643,120]
[408836994,1774338694306,-500.0,0.00041643,120]
[408836995,1774338694315,-500.0,0.00041643,120]
[408836996,1774338694324,-804.53,0.00041643,120]
[408836997,1774338694456,-500.0,0.00041643,120]
[408836998,1774338694467,-967.16,0.00041643,120]
[408836999,1774338694476,-862.09,0.00041643,120]
[408837000,1774338694485,-500.0,0.00041643,120]
[408837001,1774338694494,-500.0,0.00041643,120]
[408837002,1774338694504,-619.18705682,0.00041643,120]
[408837003,1774338694513,-649.68,0.00041643,120]
[408837004,1774338694522,-897.41,0.00041643,120]
[408837005,1774338694532,-500.0,0.00041643,120]
[408837006,1774338694541,-500.0,0.00041643,120]
[408837007,1774338694551,-500.0,0.00041643,120]
[408837008,1774338694560,-553.72637776,0.00041643,120]
[408837009,1774338694569,-500.0,0.00041643,120]
[408837010,1774338694580,-1647.3,0.00041643,120]
[408837011,1774338694589,-500.0,0.00041643,120]
[408837012,1774338694599,-500.0,0.00041643,120]
[408837013,1774338694608,-500.0,0.00041643,120]
[408837014,1774338694619,-500.0,0.00041643,120]
[408837015,1774338694628,-500.0,0.00041643,120]
[408837016,1774338694639,-500.0,0.00041643,120]
[408837017,1774338694648,-932.54,0.00041643,120]
[408837018,1774338694658,-500.0,0.00041643,120]
[408837019,1774338694667,-500.0,0.00041643,60]
[408837020,1774338694677,-1817.92,0.00041643,120]
[408837021,1774338694686,-500.0,0.00041643,120]
[408837022,1774338694696,-500.0,0.00041643,120]
[408837023,1774338694706,-500.0,0.00041643,120]
[408837024,1774338694715,-500.0,0.00041643,120]
[408837025,1774338694725,-500.0,0.00041643,120]
[408837026,1774338694734,-500.0,0.00041643,120]
[408837027,1774338694743,-500.0,0.00041643,120]
[408837028,1774338694753,-500.0,0.00041643,120]
[408837029,1774338694762,-1328.91,0.00041643,120]
[408837030,1774338694771,-1294.19,0.00041643,120]
[408837031,1774338694780,-500.0,0.00041643,120]
[408837032,1774338694789,-500.0,0.00041643,120]
[408837033,1774338694798,-500.0,0.00041643,120]
[408837034,1774338694808,-500.0,0.00041643,120]
[408837035,1774338694817,-170.08997277,0.00041643,120]
[408837036,1774338694827,-500.0,0.00041643,120]
[408837037,1774338694836,-209.79524505,0.00041643,120]
[408837038,1774338694845,-500.0,0.00041643,120]
[408837039,1774338694854,-3681.23,0.00041643,120]
[408837040,1774338694863,-500.0,0.00041643,120]
[408837041,1774338694873,-597.93433348,0.00041643,120]
[408837042,1774338694882,-500.0,0.00041643,120]
[408837043,1774338694891,-500.0,0.00041643,120]
[408837044,1774338694901,-500.0,0.00041643,120]
[408837045,1774338694910,-644.74,0.00041643,120]
[408837046,1774338694919,-500.0,0.00041643,120]
[408837047,1774338694933,-688.63,0.00041643,120]
[408837048,1774338694943,-500.0,0.00041643,120]
[408837049,1774338694953,-572.14,0.00041643,120]
[408837050,1774338694963,-500.0,0.00041643,120]
[408837051,1774338694972,-500.0,0.00041643,120]
[408837052,1774338694982,-500.0,0.00041643,120]
[408837053,1774338694991,-500.0,0.00041643,120]
[408837054,1774338695001,-500.0,0.00041643,120]
[408837055,1774338695010,-385.12445348,0.00041643,120]
[408837056,1774338695020,-500.0,0.00041643,120]
[408837057,1774338695030,-1109.47,0.00041643,120]
[408837058,1774338695039,-500.0,0.00041643,120]
[408837059,1774338695049,-500.0,0.00041643,120]
[408837060,1774338695058,-500.0,0.00041643,120]
[408837061,1774338695068,-286.66234811,0.00041643,120]
[408837062,1774338695078,-500.0,0.00041643,120]
[408837063,1774338695088,-500.0,0.00041643,120]
[408837064,1774338695097,-500.0,0.00041643,120]
[408837065,1774338695107,-500.0,0.00041643,120]
[408837066,1774338695116,-500.0,0.00041643,120]
[408837067,1774338695126,-1361.64,0.00041643,120]
[408837068,1774338695136,-214.98748188,0.00041643,120]
[408837069,1774338695147,-500.0,0.00041643,120]
[408837070,1774338695156,-1113.98,0.00041643,120]
[408837071,1774338695166,-500.0,0.00041643,120]
[408837072,1774338695176,-500.0,0.00041643,120]
[408837073,1774338695185,-500.0,0.00041643,120]
[408837074,1774338695195,-500.0,0.00041643,120]
[408837075,1774338695204,-500.0,0.00041643,120]
[408837076,1774338695214,-500.0,0.00041643,120]
[408837077,1774338695224,-500.0,0.00041643,120]
[408837078,1774338695233,-500.0,0.00041643,120]
[408837079,1774338695243,-804.84,0.00041643,120]
[408837080,1774338695253,-500.0,0.00041643,120]
[408837081,1774338695262,-500.0,0.00041643,120]
[408837082,1774338695272,-587.8,0.00041643,120]
[408837083,1774338695281,-217.87481613,0.00041643,120]
[408837084,1774338695295,-500.0,0.00041643,120]
[408837085,1774338695306,-895.35,0.00041643,120]
[408837086,1774338695316,-500.0,0.00041643,120]
[408837087,1774338695327,-500.0,0.00041643,120]
[408837088,1774338695336,-393.71433485,0.00041643,120]
[408837089,1774338695347,-500.0,0.00041643,120]
[408837090,1774338695358,-640.6,0.00041643,120]
[408837091,1774338695372,-240.10175935,0.00041643,120]
[408837092,1774338695382,-220.64937734,0.00041643,120]
[408837093,1774338695392,-500.0,0.00041643,120]
[408837094,1774338695403,-500.0,0.00041643,120]
[408837095,1774338695414,-500.0,0.00041643,120]
[408837096,1774338695426,-500.0,0.00041643,120]
[408837097,1774338695439,-500.0,0.00041643,15]
[408837098,1774338695449,-354.61750394,0.00041643,120]
[408837099,1774338695459,-500.0,0.00041643,120]
[408837100,1774338695470,-500.0,0.00041643,120]
[408837101,1774338695480,-500.0,0.00041643,120]
[408837102,1774338695490,-500.0,0.00041643,2]
[408837103,1774338695500,-1353.62,0.00041643,120]
[408837104,1774338695510,-500.0,0.00041643,120]
[408837105,1774338695520,-610.92600835,0.00041643,120]
[408837106,1774338695530,-500.0,0.00041643,120]
[408837107,1774338695540,-663.05,0.00041643,120]
[408837108,1774338695550,-500.0,0.00041643,120]
[408837109,1774338695560,-500.0,0.00041643,120]
[408837110,1774338695570,-2022.99,0.00041643,120]
[408837111,1774338695580,-500.0,0.00041643,120]
[408837112,1774338695590,-500.0,0.00041643,120]
[408837113,1774338695600,-500.0,0.00041643,120]
[408837114,1774338695610,-993.61,0.00041643,120]
[408837115,1774338695620,-500.0,0.00041643,120]
[408837116,1774338695630,-500.0,0.00041643,120]
[408837117,1774338695639,-500.0,0.00041643,120]
[408837118,1774338695649,-500.0,0.00041643,120]
[408837119,1774338695659,-500.0,0.00041643,120]
[408837120,1774338695673,-526.3,0.00041643,120]
[408837121,1774338695683,-500.0,0.00041643,120]
[408837122,1774338695693,-500.0,0.00041643,120]
[408837123,1774338695703,-803.74,0.00041643,120]
[408837124,1774338695713,-500.0,0.00041643,120]
[408837125,1774338695723,-500.0,0.00041643,120]
[408837126,1774338695732,-500.0,0.00041643,120]
[408837127,1774338695742,-593.39,0.00041643,120]
[408837128,1774338695752,-773.48,0.00041643,120]
[408837129,1774338695762,-500.0,0.00041643,120]
[408837130,1774338695772,-500.0,0.00041643,120]
[408837131,1774338695781,-500.0,0.00041643,120]
[408837132,1774338695791,-500.0,0.00041643,120]
[408837133,1774338695801,-646.51848184,0.00041643,120]
[408837134,1774338695811,-500.0,0.00041643,120]
[408837135,1774338695820,-500.0,0.00041643,120]
[408837136,1774338695831,-500.0,0.00041643,120]
[408837137,1774338695841,-500.0,0.00041643,120]
[408837138,1774338695854,-1169.17,0.00041643,120]
[408837139,1774338695865,-500.0,0.00041643,120]
[408837140,1774338695874,-500.0,0.00041643,120]
[408837141,1774338695884,-500.0,0.00041643,120]
[408837142,1774338695894,-500.0,0.00041643,120]
[408837143,1774338695903,-500.0,0.00041643,120]
[408837144,1774338695913,-500.0,0.00041643,120]
[408837145,1774338695923,-500.0,0.00041643,120]
[408837146,1774338695933,-1339.98,0.00041643,120]
[408837147,1774338695943,-500.0,0.00041643,120]
[408837148,1774338695954,-500.0,0.00041643,120]
[408837149,1774338695964,-500.0,0.00041643,120]
[408837150,1774338695974,-500.0,0.00041643,120]
[408837151,1774338695984,-500.0,0.00041643,120]
[408837152,1774338695994,-599.34,0.00041643,120]
[408837153,1774338696004,-500.0,0.00041643,120]
[408837154,1774338696014,-551.15,0.00041643,120]
[408837155,1774338696024,-153.69950881,0.00041643,120]
[408837156,1774338696034,-500.0,0.00041643,120]
[408837157,1774338696047,-1698.32,0.00041643,120]
[408837158,1774338696057,-154.06111436,0.00041643,120]
[408837159,1774338696067,-500.0,0.00041643,30]
[408837160,1774338696076,-1450.66,0.00041643,120]
[408837161,1774338696086,-500.0,0.00041643,120]
[408837162,1774338696096,-480.79992111,0.00041643,120]
[408837163,1774338696108,-172.54196912,0.00041643,120]
[408837164,1774338696118,-500.0,0.00041643,120]
[408837165,1774338696128,-500.0,0.00041643,120]
[408837166,1774338696138,-818.03,0.00041643,120]
[408837167,1774338696147,-500.0,0.00041643,120]
[408837168,1774338696157,-461.23523085,0.00041643,120]
[408837169,1774338696168,-620.94,0.00041643,2]
[408837170,1774338696178,-500.0,0.00041643,120]
[408837171,1774338696188,-500.0,0.00041643,120]
[408837172,1774338696197,-500.0,0.00041643,120]
[408837173,1774338696208,-500.0,0.00041643,120]
[408837174,1774338696218,-500.0,0.00041643,120]
[408837175,1774338696229,-500.0,0.00041643,120]
[408837176,1774338696239,-500.0,0.00041643,120]
[408837177,1774338696252,-500.0,0.00041643,120]
[408837178,1774338696262,-500.0,0.00041643,120]
[408837179,1774338696272,-500.0,0.00041643,120]
[408837180,1774338696284,-500.0,0.00041643,120]
[408837181,1774338696294,-1515.34,0.00041643,120]
[408837182,1774338696305,-500.0,0.00041643,120]
[408837183,1774338696315,-500.0,0.00041643,120]
[408837184,1774338696325,-500.0,0.00041643,120]
[408837185,1774338696334,-1009.33,0.00041643,120]
[408837186,1774338696344,-500.0,0.00041643,120]
[408837187,1774338696355,-4192.59,0.00041643,120]
[408837188,1774338696367,-500.0,0.00041643,120]
[408837189,1774338696378,-500.0,0.00041643,120]
[408837190,1774338696388,-500.0,0.00041643,120]
[408837191,1774338696397,-2475.9,0.00041643,120]
[408837192,1774338696408,-500.0,0.00041643,120]
[408837193,1774338696417,-500.0,0.00041643,120]
[408837194,1774338696427,-500.0,0.00041643,120]
[408837195,1774338696438,-2035.37,0.00041643,120]
[408837196,1774338696448,-500.0,0.00041643,120]
[408837197,1774338696457,-500.0,0.00041643,120]
[408837198,1774338696467,-500.0,0.00041643,120]
[408837199,1774338696477,-500.0,0.00041643,120]
[408837200,1774338696487,-857.75,0.00041643,120]
[408837201,1774338696496,-588.23,0.00041643,120]
[408837202,1774338696506,-944.17,0.00041643,120]
[408837203,1774338696515,-500.0,0.00041643,120]
[408837204,1774338696526,-500.0,0.00041643,120]
[408837205,1774338696535,-500.0,0.00041643,120]
[408837206,1774338696545,-1317.86,0.00041643,30]
[408837207,1774338696555,-156.68768881,0.00041643,120]
[408837208,1774338696565,-174.07780502,0.00041643,120]
[408837209,1774338696574,-500.0,0.00041643,120]
[408837210,1774338696585,-500.0,0.00041643,120]
[408837211,1774338696595,-826.35,0.00041643,120]
[408837212,1774338696605,-381.76439372,0.00041643,120]
[408837213,1774338696615,-1144.87,0.00041643,120]
[408837214,1774338696625,-500.0,0.00041643,120]
[408837215,1774338696636,-271.43041238,0.00041643,120]
[408837216,1774338697093,-500.0,0.00041643,120]
[408837217,1774338697110,-500.0,0.00041643,120]
[408837218,1774338697120,-500.0,0.00041643,120]
[408837219,1774338697130,-500.0,0.00041643,120]
[408837220,1774338697140,-500.0,0.00041643,120]
[408837221,1774338697150,-500.0,0.00041643,120]
[408837222,1774338697160,-500.0,0.00041643,120]
[408837223,1774338697170,-500.0,0.00041643,120]
[408837224,1774338697180,-895.15,0.00041643,120]
[408837225,1774338697189,-487.15766618,0.00041643,120]
[408837226,1774338697200,-800.0,0.00041643,120]
[408837227,1774338697209,-500.0,0.00041643,120]
[408837228,1774338697219,-500.0,0.00041643,120]
[408837229,1774338697229,-1197.62,0.00041643,120]
[408837230,1774338697239,-358.87076003,0.00041643,120]
[408837231,1774338697248,-565.04793093,0.00041643,120]
[408837232,1774338697259,-500.0,0.00041643,120]
[408837233,1774338697268,-1494.6,0.00041643,120]
[408837234,1774338697278,-1086.62,0.00041643,120]
[408837235,1774338697288,-500.0,0.00041643,120]
[408837236,1774338697298,-500.0,0.00041643,120]
[408837237,1774338697307,-473.92585742,0.00041643,120]
[408837238,1774338697317,-500.0,0.00041643,120]
[408837239,1774338697327,-500.0,0.00041643,120]
[408837240,1774338697337,-500.0,0.00041643,120]
[408837241,1774338697347,-500.0,0.00041643,120]
[408837242,1774338697361,-946.8,0.00041643,120]
[408837243,1774338697374,-500.0,0.00041643,120]
[408837244,1774338697384,-713.74,0.00041643,120]
[408837245,1774338697392,-500.0,0.00041643,120]
[408837246,1774338697401,-500.0,0.00041643,120]
[408837247,1774338697411,-6072.1,0.00041643,120]
[408837248,1774338697419,-826.7,0.00041643,120]
[408837249,1774338697429,-1989.66,0.00041643,30]
[408837250,1774338697439,-500.0,0.00041643,120]
[408837251,1774338697449,-552.86,0.00041643,120]
[408837252,1774338697459,-926.79,0.00041643,120]
[408837253,1774338697468,-500.0,0.00041643,120]
[408837254,1774338697476,-500.0,0.00041643,120]
[408837255,1774338697485,-500.0,0.00041643,120]
[408837256,1774338697494,-2329.55,0.00041643,120]
[408837257,1774338697503,-232.8980212,0.00041643,120]
[408837258,1774338697512,-500.0,0.00041643,120]
[408837259,1774338697522,-251.36741533,0.00041643,30]
[408837260,1774338697530,-500.0,0.00041643,120]
[408837261,1774338697540,-500.0,0.00041643,120]
[408837262,1774338697550,-847.68,0.00041643,120]
[408837263,1774338697560,-649.63131314,0.00041643,120]
[408837264,1774338697570,-1646.81,0.00041643,120]
[408837265,1774338697579,-1090.68,0.00041643,120]
[408837266,1774338697587,-500.0,0.00041643,120]
[408837267,1774338697594,-1885.93,0.00041643,120]
[408837268,1774338697602,-741.6,0.00041643,120]
[408837269,1774338697609,-500.0,0.00041643,120]
[408837270,1774338697617,-500.0,0.00041643,120]
[408837271,1774338697624,-442.79051356,0.00041643,120]
[408837272,1774338697631,-727.16,0.00041643,120]
[408837273,1774338697638,-157.99610826,0.00041643,120]
[408837274,1774338697644,-500.0,0.00041643,120]
[408837275,1774338697652,-712.06,0.00041643,120]
[408837276,1774338697660,-5833.33,0.00041643,120]
[408837277,1774338697668,-500.0,0.00041643,120]
[408837278,1774338697676,-500.0,0.00041643,120]
[408837279,1774338697682,-2107.35,0.00041643,120]
[408837280,1774338697691,-500.0,0.00041643,120]
[408837281,1774338697698,-500.0,0.00041643,120]
[408837282,1774338697705,-500.0,0.00041643,120]
[408837283,1774338697713,-500.0,0.00041643,120]
[408837284,1774338697720,-275.15080874,0.00041643,120]
[408837285,1774338697726,-500.0,0.00041643,120]
[408837286,1774338697733,-617.58,0.00041643,120]
[408837287,1774338697740,-500.0,0.00041643,120]
[408837288,1774338697747,-500.0,0.00041643,120]
[408837289,1774338697753,-2133.23,0.00041643,120]
[408837290,1774338697761,-500.0,0.00041643,120]
[408837291,1774338697770,-500.0,0.00041643,120]
[408837292,1774338697780,-1039.39,0.00041643,120]
[408837293,1774338697790,-500.0,0.00041643,120]
[408837294,1774338697799,-2468.56,0.00041643,120]
[408837295,1774338697809,-1366.12,0.00041643,120]
[408837296,1774338697819,-500.0,0.00041643,120]
[408837297,1774338697828,-179.45197895,0.00041643,120]
[408837298,1774338697838,-500.0,0.00041643,120]
[408837299,1774338697847,-644.17401113,0.00041643,120]
[408837300,1774338697859,-1016.32,0.00041643,120]
[408837301,1774338697869,-500.0,0.00041643,120]
[408837302,1774338697878,-784.59,0.00041643,120]
[408837303,1774338697888,-258.4227879,0.00041643,120]
[408837304,1774338697898,-1478.69,0.00041643,120]
[408837305,1774338697908,-1107.99,0.00041643,120]
[408837306,1774338697918,-500.0,0.00041643,120]
[408837307,1774338697928,-1259.9,0.00041643,120]
[408837308,1774338697938,-1114.05,0.00041643,120]
[408837309,1774338697947,-1519.93,0.00041643,120]
[408837310,1774338697957,-646.06,0.00041643,120]
[408837311,1774338697966,-500.0,0.00041643,120]
[408837312,1774338697978,-1266.58,0.00041643,120]
[408837313,1774338697988,-500.0,0.00041643,120]
[408837314,1774338697997,-500.0,0.00041643,120]
[408837315,1774338698008,-500.0,0.00041643,120]
[408837316,1774338698017,-500.0,0.00041643,120]
[408837317,1774338698026,-500.0,0.00041643,120]
[408837318,1774338698036,-1009.25,0.00041643,120]
[408837319,1774338698046,-500.0,0.00041643,120]
[408837320,1774338698055,-707.37,0.00041643,120]
[408837321,1774338698065,-1156.03,0.00041643,14]
[408837322,1774338698076,-500.0,0.00041643,120]
[408837323,1774338698085,-999.55,0.00041643,120]
[408837324,1774338698093,-642.45702321,0.00041643,120]
[408837325,1774338698102,-970.63,0.00041643,120]
[408837326,1774338698110,-500.0,0.00041643,120]
[408837327,1774338698118,-650.62,0.00041643,30]
[408837328,1774338698127,-725.53,0.00041643,120]
[408837329,1774338698135,-500.0,0.00041643,120]
[408837330,1774338698144,-1014.92,0.00041643,120]
[408837331,1774338698154,-500.0,0.00041643,120]
[408837332,1774338698163,-2689.33,0.00041643,120]
[408837333,1774338698172,-500.0,0.00041643,120]
[408837334,1774338698182,-500.0,0.00041643,120]
[408837335,1774338698193,-500.0,0.00041643,120]
[408837336,1774338698202,-560.02204519,0.00041643,120]
[408837337,1774338698212,-500.0,0.00041643,120]
[408837338,1774338698222,-1544.85,0.00041643,120]
[408837339,1774338698231,-500.0,0.00041643,120]
[408837340,1774338698242,-500.0,0.00041643,120]
[408837341,1774338698252,-500.0,0.00041643,120]
[408837342,1774338698262,-255.31854859,0.00041643,120]
[408837343,1774338698272,-1269.14,0.00041643,120]
[408837344,1774338698282,-589.13112098,0.00041643,120]
[408837345,1774338698292,-500.0,0.00041643,120]
[408837346,1774338698302,-500.0,0.00041643,120]
[408837347,1774338698311,-665.15,0.00041643,120]
[408837348,1774338698323,-500.0,0.00041643,120]
[408837349,1774338698333,-680.42,0.00041643,120]
[408837350,1774338698344,-500.0,0.00041643,120]
[408837351,1774338698355,-500.0,0.00041643,120]
[408837352,1774338698364,-500.0,0.00041643,120]
[408837353,1774338698378,-561.83961373,0.00041643,120]
[408837354,1774338698388,-500.0,0.00041643,120]
[408837355,1774338698398,-500.0,0.00041643,120]
[408837356,1774338698409,-500.0,0.00041643,120]
[408837357,1774338698419,-500.0,0.00041643,120]
[408837358,1774338698428,-500.0,0.00041643,120]
[408837359,1774338698437,-1769.26,0.00041643,120]
[408837360,1774338698447,-500.0,0.00041643,120]
[408837361,1774338698456,-512.42,0.00041643,120]
[408837362,1774338698466,-500.0,0.00041643,120]
[408837363,1774338698475,-500.0,0.00041643,120]
[408837364,1774338698485,-500.0,0.00041643,120]
[408837365,1774338698494,-500.0,0.00041643,120]
[408837366,1774338698504,-595.42318404,0.00041643,120]
[408837367,1774338698514,-500.0,0.00041643,120]
[408837368,1774338698524,-500.0,0.00041643,120]
[408837369,1774338698533,-500.0,0.00041643,120]
[408837370,1774338698542,-500.0,0.00041643,120]
[408837371,1774338698552,-500.0,0.00041643,120]
[408837372,1774338698562,-500.0,0.00041643,120]
[408837373,1774338698572,-169.19927969,0.00041643,120]
[408837374,1774338698582,-1705.77,0.00041643,120]
[408837375,1774338698592,-500.0,0.00041643,120]
[408837376,1774338698602,-500.0,0.00041643,120]
[408837377,1774338698612,-978.43,0.00041643,120]
[408837378,1774338698622,-500.0,0.00041643,120]
[408837379,1774338698632,-500.0,0.00041643,120]
[408837380,1774338698642,-500.0,0.00041643,120]
[408837381,1774338698651,-500.0,0.00041643,120]
[408837382,1774338698661,-500.0,0.00041643,120]
[408837383,1774338698671,-500.0,0.00041643,120]
[408837384,1774338698680,-500.0,0.00041643,120]
[408837385,1774338698689,-500.0,0.00041643,120]
[408837386,1774338698700,-500.0,0.00041643,120]
[408837387,1774338698710,-500.0,0.00041643,120]
[408837388,1774338698719,-500.0,0.00041643,120]
[408837389,1774338698729,-500.0,0.00041643,120]
[408837390,1774338698739,-500.0,0.00041643,120]
[408837391,1774338698748,-500.0,0.00041643,120]
[408837392,1774338698758,-500.0,0.00041643,120]
[408837393,1774338698767,-1215.44,0.00041643,120]
[408837394,1774338698777,-500.0,0.00041643,120]
[408837395,1774338698786,-500.0,0.00041643,120]
[408837396,1774338698795,-500.0,0.00041643,120]
[408837397,1774338698805,-500.0,0.00041643,120]
[408837398,1774338698814,-1046.27,0.00041643,120]
[408837399,1774338698823,-500.0,0.00041643,120]
[408837400,1774338698833,-213.03215539,0.00041643,120]
[408837401,1774338698843,-500.0,0.00041643,120]
[408837402,1774338698852,-1613.72,0.00041643,120]
[408837403,1774338698862,-1897.96,0.00041643,120]
[408837404,1774338698871,-500.0,0.00041643,120]
[408837405,1774338698880,-770.58,0.00041643,120]
[408837406,1774338698889,-1960.33,0.00041643,120]
[408837407,1774338698899,-500.0,0.00041643,120]
[408837408,1774338698909,-500.0,0.00041643,120]
[408837409,1774338698918,-545.18187548,0.00041643,120]
[408837410,1774338698927,-3056.27,0.00041643,120]
[408837411,1774338698936,-361.96625909,0.00041643,120]
[408837412,1774338698946,-183.41258758,0.00041643,120]
[408837413,1774338698955,-500.0,0.00041643,120]
[408837414,1774338698965,-1228.99,0.00041643,120]
[408837415,1774338698974,-500.0,0.00041643,120]
[408837416,1774338698983,-500.0,0.00041643,60]
[408837417,1774338698993,-500.0,0.00041643,120]
[408837418,1774338699003,-680.28,0.00041643,120]
[408837419,1774338699012,-769.44,0.00041643,120]
[408837420,1774338699021,-500.0,0.00041643,120]
[408837421,1774338699030,-500.0,0.00041643,120]
[408837422,1774338699041,-500.0,0.00041643,120]
[408837423,1774338699050,-500.0,0.00041643,120]
[408837424,1774338699060,-500.0,0.00041643,120]
[408837425,1774338699070,-500.0,0.00041643,120]
[408837426,1774338699079,-855.78,0.00041643,120]
[408837427,1774338699089,-500.0,0.00041643,120]
[408837428,1774338699098,-500.0,0.00041643,120]
[408837429,1774338699108,-1780.32,0.00041643,120]
[408837430,1774338699118,-1078.9,0.00041643,120]
[408837431,1774338699127,-1099.3,0.00041643,120]
[408837432,1774338699137,-699.82,0.00041643,120]
[408837433,1774338699146,-578.10151011,0.00041643,120]
[408837434,1774338699155,-500.0,0.00041643,120]
[408837435,1774338699164,-500.0,0.00041643,120]
[408837436,1774338699174,-759.17,0.00041643,120]
[408837437,1774338699183,-500.0,0.00041643,120]
[408837438,1774338699193,-500.0,0.00041643,120]
[408837439,1774338699202,-500.0,0.00041643,120]
[408837440,1774338699211,-500.0,0.00041643,120]
[408837441,1774338699221,-931.09,0.00041643,120]
[408837442,1774338699230,-815.17,0.00041643,120]
[408837443,1774338699239,-500.0,0.00041643,120]
[408837444,1774338699248,-500.0,0.00041643,120]
[408837445,1774338699258,-500.0,0.00041643,120]
[408837446,1774338699267,-158.59876847,0.00041643,120]
[408837447,1774338699277,-656.8,0.00041643,120]
[408837448,1774338699287,-500.0,0.00041643,120]
[408837449,1774338699296,-294.15899977,0.00041643,120]
[408837450,1774338699305,-500.0,0.00041643,120]
[408837451,1774338699315,-500.0,0.00041643,120]
[408837452,1774338699324,-500.0,0.00041643,120]
[408837453,1774338699334,-500.0,0.00041643,120]
[408837454,1774338699344,-671.25,0.00041643,120]
[408837455,1774338699354,-500.0,0.00041643,120]
[408837456,1774338699364,-614.51,0.00041643,120]
[408837457,1774338699378,-1323.85,0.00041643,7]
[408837458,1774338699388,-500.0,0.00041643,14]
[408837459,1774338699398,-500.0,0.00041643,120]
[408837460,1774338699413,-984.57,0.00041643,120]
[408837461,1774338699423,-500.0,0.00041643,120]
[408837462,1774338699432,-500.0,0.00041643,120]
[408837463,1774338699441,-500.0,0.00041643,120]
[408837464,1774338699450,-562.92457884,0.00041643,120]
[408837465,1774338699459,-729.45,0.00041643,120]
[408837466,1774338699471,-628.13522222,0.00041643,120]
[408837467,1774338699480,-500.0,0.00041643,120]
[408837468,1774338699489,-568.21232492,0.00041643,120]
[408837469,1774338699497,-500.0,0.00041643,120]
[408837470,1774338699507,-500.0,0.00041643,120]
[408837471,1774338699516,-926.4,0.00041643,120]
[408837472,1774338699525,-1291.11,0.00041643,120]
[408837473,1774338699535,-560.4,0.00041643,120]
[408837474,1774338699544,-500.0,0.00041643,120]
[408837475,1774338699553,-617.21,0.00041643,120]
[408837476,1774338699562,-500.0,0.00041643,120]
[408837477,1774338699572,-1726.06,0.00041643,120]
[408837478,1774338699581,-227.02099632,0.00041643,120]
[408837479,1774338699590,-500.0,0.00041643,120]
[408837480,1774338699599,-500.0,0.00041643,120]
[408837481,1774338699610,-500.0,0.00041643,120]
[408837482,1774338699620,-500.0,0.00041643,120]
[408837483,1774338699629,-500.0,0.00041643,120]
[408837484,1774338699638,-500.0,0.00041643,120]
[408837485,1774338699649,-500.0,0.00041643,120]
[408837486,1774338699658,-1356.13,0.00041643,120]
[408837487,1774338699667,-500.0,0.00041643,120]
[408837488,1774338699676,-801.87,0.00041643,120]
[408837489,1774338699685,-500.0,0.00041643,120]
[408837490,1774338699695,-500.0,0.00041643,120]
[408837491,1774338699704,-500.0,0.00041643,120]
[408837492,1774338699713,-500.0,0.00041643,120]